[Event "Titled Tuesday Blitz March 07 Late 2023"]
[White "Rian, Kapriaga"]
[Black "Kozin, Yuri"]
[WhiteFideId "7103263"]
[BlackFideId "4129920"]
[WhiteElo "2367"]
[BlackElo "2479"]
[Result "0-1"]
[Round "08"]
[TimeControl "180+2"]
[Date "2023.03.07"]
[WhiteClock "0:00:15"]
[BlackClock "0:00:09"]

1. d4 {[%clk 0:03:00]}  d5 {[%clk 0:02:57]} 2. Bf4 {[%clk 0:02:59]}  Nf6 {[%clk 0:02:56]} 3. e3 {[%clk 0:02:59]}  e6 {[%clk 0:02:56]} 4. c4 {[%clk 0:02:59]}  Bd6 {[%clk 0:02:53]} 5. Bxd6 {[%clk 0:02:56]}  cxd6 {[%clk 0:02:50]} 6. Nc3 {[%clk 0:02:54]}  dxc4 {[%clk 0:02:48]} 7. Bxc4 {[%clk 0:02:53]}  d5 {[%clk 0:02:48]} 8. Bd3 {[%clk 0:02:52]}  O-O {[%clk 0:02:48]} 9. Nf3 {[%clk 0:02:51]}  Nc6 {[%clk 0:02:43]} 10. O-O {[%clk 0:02:51]}  Bd7 {[%clk 0:02:41]} 11. Rc1 {[%clk 0:02:50]}  Rc8 {[%clk 0:02:42]} 12. a3 {[%clk 0:02:50]}  Qe7 {[%clk 0:02:41]} 13. b4 {[%clk 0:02:49]}  a6 {[%clk 0:02:38]} 14. Na4 {[%clk 0:02:45]}  e5 {[%clk 0:02:37]} 15. dxe5 {[%clk 0:02:43]}  Nxe5 {[%clk 0:02:37]} 16. Nc5 {[%clk 0:02:39]}  Bg4 {[%clk 0:02:22]} 17. Be2 {[%clk 0:02:32]}  Nxf3+ {[%clk 0:02:04]} 18. Bxf3 {[%clk 0:02:31]}  Bxf3 {[%clk 0:02:04]} 19. Qxf3 {[%clk 0:02:30]}  Rfd8 {[%clk 0:02:05]} 20. Rfd1 {[%clk 0:02:29]}  a5 {[%clk 0:02:02]} 21. Qf4 {[%clk 0:01:55]}  axb4 {[%clk 0:01:59]} 22. Qxb4 {[%clk 0:01:54]}  Rb8 {[%clk 0:01:39]} 23. h3 {[%clk 0:01:51]}  h6 {[%clk 0:01:39]} 24. Na6 {[%clk 0:01:37]}  Qxb4 {[%clk 0:01:35]} 25. Nxb4 {[%clk 0:01:36]}  Ra8 {[%clk 0:01:35]} 26. Rc3 {[%clk 0:01:31]}  Ra5 {[%clk 0:01:12]} 27. f3 {[%clk 0:01:26]}  Rda8 {[%clk 0:01:10]} 28. Rdd3 {[%clk 0:01:16]}  g5 {[%clk 0:01:08]} 29. Kf2 {[%clk 0:01:15]}  Kg7 {[%clk 0:01:08]} 30. g4 {[%clk 0:01:13]}  Kg6 {[%clk 0:01:07]} 31. Kg3 {[%clk 0:01:11]}  h5 {[%clk 0:01:06]} 32. Rb3 {[%clk 0:01:03]}  h4+ {[%clk 0:01:01]} 33. Kf2 {[%clk 0:01:01]}  Kg7 {[%clk 0:01:02]} 34. Nc2 {[%clk 0:01:00]}  Rc8 {[%clk 0:00:46]} 35. Nd4 {[%clk 0:00:58]}  Rc7 {[%clk 0:00:36]} 36. Rdc3 {[%clk 0:00:56]}  Rxc3 {[%clk 0:00:32]} 37. Rxc3 {[%clk 0:00:56]}  Nd7 {[%clk 0:00:25]} 38. Nf5+ {[%clk 0:00:48]}  Kf6 {[%clk 0:00:20]} 39. Nd6 {[%clk 0:00:38]}  Rc5 {[%clk 0:00:17]} 40. Rb3 {[%clk 0:00:35]}  Rc2+ {[%clk 0:00:16]} 41. Kg1 {[%clk 0:00:33]}  Ne5 {[%clk 0:00:14]} 42. f4 {[%clk 0:00:27]}  Nf3+ {[%clk 0:00:14]} 43. Kf1 {[%clk 0:00:27]}  Nd2+ {[%clk 0:00:13]} 44. Ke1 {[%clk 0:00:24]}  Nxb3 {[%clk 0:00:14]} 45. e4 {[%clk 0:00:20]}  gxf4 {[%clk 0:00:12]} 46. exd5 {[%clk 0:00:18]}  f3 {[%clk 0:00:11]} 47. Ne4+ {[%clk 0:00:16]}  Ke5 {[%clk 0:00:11]} 48. Nf2 {[%clk 0:00:15]}  Kxd5 {[%clk 0:00:10]} 49. g5 {[%clk 0:00:15]}  Ke5 {[%clk 0:00:09]} 0-1


[Site "https://www.chess.com"]

[Event "Titled Tuesday Blitz March 07 Late 2023"]
[White "Mazurkiewicz, Michal"]
[Black "Eggleston, Thomas A"]
[WhiteFideId "1124943"]
[BlackFideId "412139"]
[WhiteElo "2054"]
[BlackElo "2155"]
[Result "0-1"]
[Round "08"]
[TimeControl "180+2"]
[Date "2023.03.07"]
[WhiteClock "0:00:09"]
[BlackClock "0:00:55"]

1. e4 {[%clk 0:03:00]}  e6 {[%clk 0:02:59]} 2. d3 {[%clk 0:03:00]}  c5 {[%clk 0:02:59]} 3. Nd2 {[%clk 0:03:01]}  d5 {[%clk 0:02:55]} 4. Ngf3 {[%clk 0:03:00]}  Nc6 {[%clk 0:02:55]} 5. g3 {[%clk 0:03:01]}  Nf6 {[%clk 0:02:55]} 6. Bg2 {[%clk 0:03:02]}  Be7 {[%clk 0:02:53]} 7. O-O {[%clk 0:03:02]}  b5 {[%clk 0:02:50]} 8. h4 {[%clk 0:03:02]}  a5 {[%clk 0:02:35]} 9. a4 {[%clk 0:02:53]}  bxa4 {[%clk 0:02:32]} 10. Rxa4 {[%clk 0:02:52]}  Ba6 {[%clk 0:02:32]} 11. Re1 {[%clk 0:02:51]}  Rb8 {[%clk 0:02:27]} 12. exd5 {[%clk 0:02:33]}  exd5 {[%clk 0:02:26]} 13. Ne5 {[%clk 0:02:30]}  Nxe5 {[%clk 0:02:18]} 14. Rxe5 {[%clk 0:02:31]}  O-O {[%clk 0:02:09]} 15. Nb3 {[%clk 0:02:28]}  Bb5 {[%clk 0:02:01]} 16. Rxa5 {[%clk 0:01:26]}  Bd6 {[%clk 0:01:43]} 17. Bf4 {[%clk 0:00:41]}  c4 {[%clk 0:01:16]} 18. dxc4 {[%clk 0:00:38]}  Bxc4 {[%clk 0:01:16]} 19. Rexd5 {[%clk 0:00:30]}  Nxd5 {[%clk 0:01:09]} 20. Bxd5 {[%clk 0:00:20]}  Bxb3 {[%clk 0:01:03]} 21. Bxd6 {[%clk 0:00:09]}  Qxa5 {[%clk 0:00:55]} 0-1


[Site "https://www.chess.com"]

[Event "Titled Tuesday Blitz March 07 Late 2023"]
[White "Dzida, Kamil"]
[Black "Pesotskiy, Mikhail"]
[WhiteFideId "21828652"]
[BlackFideId "34164453"]
[WhiteElo "2139"]
[BlackElo "2131"]
[Result "1/2-1/2"]
[Round "08"]
[TimeControl "180+2"]
[Date "2023.03.07"]
[WhiteClock "0:00:09"]
[BlackClock "0:00:13"]

1. d4 {[%clk 0:03:00]}  Nf6 {[%clk 0:02:59]} 2. Nf3 {[%clk 0:02:58]}  c5 {[%clk 0:02:58]} 3. d5 {[%clk 0:02:57]}  b5 {[%clk 0:02:58]} 4. Bg5 {[%clk 0:02:56]}  Qb6 {[%clk 0:02:56]} 5. e3 {[%clk 0:02:53]}  g6 {[%clk 0:02:38]} 6. Bxf6 {[%clk 0:02:40]}  Qxf6 {[%clk 0:02:39]} 7. Nbd2 {[%clk 0:02:39]}  a6 {[%clk 0:02:37]} 8. a4 {[%clk 0:02:39]}  b4 {[%clk 0:02:36]} 9. Nc4 {[%clk 0:02:39]}  Bg7 {[%clk 0:02:31]} 10. a5 {[%clk 0:02:39]}  Ra7 {[%clk 0:02:27]} 11. Be2 {[%clk 0:02:24]}  O-O {[%clk 0:02:26]} 12. O-O {[%clk 0:02:20]}  d6 {[%clk 0:02:23]} 13. Nfd2 {[%clk 0:02:17]}  Nd7 {[%clk 0:02:13]} 14. Bg4 {[%clk 0:01:37]}  Ne5 {[%clk 0:01:59]} 15. Bxc8 {[%clk 0:01:20]}  Rxc8 {[%clk 0:02:00]} 16. Qe2 {[%clk 0:01:18]}  Nxc4 {[%clk 0:01:26]} 17. Nxc4 {[%clk 0:01:18]}  e5 {[%clk 0:01:24]} 18. c3 {[%clk 0:00:38]}  Rb8 {[%clk 0:01:18]} 19. e4 {[%clk 0:00:34]}  Qe7 {[%clk 0:01:04]} 20. Nb6 {[%clk 0:00:33]}  bxc3 {[%clk 0:00:55]} 21. bxc3 {[%clk 0:00:33]}  Bf6 {[%clk 0:00:56]} 22. Rfb1 {[%clk 0:00:30]}  Qe8 {[%clk 0:00:56]} 23. Rb3 {[%clk 0:00:23]}  Bd8 {[%clk 0:00:56]} 24. Rab1 {[%clk 0:00:19]}  Bxb6 {[%clk 0:00:56]} 25. axb6 {[%clk 0:00:20]}  Raa8 {[%clk 0:00:53]} 26. b7 {[%clk 0:00:19]}  Ra7 {[%clk 0:00:53]} 27. Rb6 {[%clk 0:00:20]}  Qd7 {[%clk 0:00:53]} 28. Rxa6 {[%clk 0:00:19]}  Raxb7 {[%clk 0:00:53]} 29. Rxb7 {[%clk 0:00:19]}  Rxb7 {[%clk 0:00:54]} 30. h4 {[%clk 0:00:19]}  h5 {[%clk 0:00:53]} 31. Qf3 {[%clk 0:00:18]}  Kg7 {[%clk 0:00:53]} 32. Kh2 {[%clk 0:00:18]}  Ra7 {[%clk 0:00:46]} 33. Qe2 {[%clk 0:00:16]}  Rxa6 {[%clk 0:00:44]} 34. Qxa6 {[%clk 0:00:17]}  Qg4 {[%clk 0:00:44]} 35. g3 {[%clk 0:00:17]}  Qxe4 {[%clk 0:00:43]} 36. Qxd6 {[%clk 0:00:18]}  c4 {[%clk 0:00:41]} 37. Qc5 {[%clk 0:00:18]}  Qd3 {[%clk 0:00:39]} 38. d6 {[%clk 0:00:18]}  Kf6 {[%clk 0:00:30]} 39. d7 {[%clk 0:00:17]}  Qxd7 {[%clk 0:00:30]} 40. Qxc4 {[%clk 0:00:18]}  Qd2 {[%clk 0:00:29]} 41. Kg2 {[%clk 0:00:17]}  Kg7 {[%clk 0:00:26]} 42. Qc5 {[%clk 0:00:16]}  Qe2 {[%clk 0:00:25]} 43. Qe3 {[%clk 0:00:15]}  Qb5 {[%clk 0:00:20]} 44. Qe4 {[%clk 0:00:14]}  f5 {[%clk 0:00:19]} 45. Qe3 {[%clk 0:00:12]}  Qc6+ {[%clk 0:00:16]} 46. Kh2 {[%clk 0:00:12]}  e4 {[%clk 0:00:16]} 47. Qd4+ {[%clk 0:00:13]}  Kh7 {[%clk 0:00:16]} 48. c4 {[%clk 0:00:13]}  Qa4 {[%clk 0:00:17]} 49. Qd5 {[%clk 0:00:08]}  Qc2 {[%clk 0:00:17]} 50. Qd4 {[%clk 0:00:08]}  Kg8 {[%clk 0:00:15]} 51. c5 {[%clk 0:00:08]}  Kh7 {[%clk 0:00:14]} 52. Qd7+ {[%clk 0:00:08]}  Kh6 {[%clk 0:00:15]} 53. Qd4 {[%clk 0:00:09]}  Kh7 {[%clk 0:00:14]} 54. Qd7+ {[%clk 0:00:09]}  Kh6 {[%clk 0:00:14]} 55. Qd4 {[%clk 0:00:09]}  Kh7 {[%clk 0:00:13]} 1/2-1/2


[Site "https://www.chess.com"]

[Event "Titled Tuesday Blitz March 07 Late 2023"]
[White "Ricaurte Lopez, Juan Carlos"]
[Black "Gatterer, Florian"]
[WhiteFideId "3600327"]
[BlackFideId "811688"]
[WhiteElo "2209"]
[BlackElo "2221"]
[Result "1-0"]
[Round "08"]
[TimeControl "180+2"]
[Date "2023.03.07"]
[WhiteClock "0:00:08"]
[BlackClock "0:00:01"]

1. e4 {[%clk 0:02:57]}  c5 {[%clk 0:02:59]} 2. d4 {[%clk 0:02:56]}  cxd4 {[%clk 0:02:58]} 3. c3 {[%clk 0:02:56]}  Nf6 {[%clk 0:02:57]} 4. e5 {[%clk 0:02:54]}  Nd5 {[%clk 0:02:57]} 5. Bc4 {[%clk 0:02:54]}  Nb6 {[%clk 0:02:57]} 6. Bb3 {[%clk 0:02:53]}  Nc6 {[%clk 0:02:51]} 7. Nf3 {[%clk 0:02:52]}  d5 {[%clk 0:02:49]} 8. cxd4 {[%clk 0:02:50]}  Bg4 {[%clk 0:02:46]} 9. Be3 {[%clk 0:02:46]}  e6 {[%clk 0:02:44]} 10. h3 {[%clk 0:02:45]}  Bh5 {[%clk 0:02:40]} 11. O-O {[%clk 0:02:44]}  Be7 {[%clk 0:02:39]} 12. Nbd2 {[%clk 0:02:36]}  O-O {[%clk 0:02:38]} 13. Rc1 {[%clk 0:02:32]}  Rc8 {[%clk 0:02:38]} 14. Qe2 {[%clk 0:02:22]}  Na5 {[%clk 0:02:33]} 15. Qb5 {[%clk 0:02:18]}  Nxb3 {[%clk 0:02:23]} 16. axb3 {[%clk 0:02:16]}  Qd7 {[%clk 0:02:06]} 17. Qa5 {[%clk 0:02:09]}  Ra8 {[%clk 0:01:41]} 18. Rc3 {[%clk 0:02:09]}  Bd8 {[%clk 0:01:36]} 19. Qb4 {[%clk 0:01:38]}  Be7 {[%clk 0:01:31]} 20. Qa5 {[%clk 0:01:37]}  Bd8 {[%clk 0:01:27]} 21. Qb4 {[%clk 0:01:36]}  a5 {[%clk 0:01:18]} 22. Qd6 {[%clk 0:01:33]}  Qxd6 {[%clk 0:00:56]} 23. exd6 {[%clk 0:01:33]}  f6 {[%clk 0:00:56]} 24. Rfc1 {[%clk 0:01:27]}  Kf7 {[%clk 0:00:55]} 25. g4 {[%clk 0:01:20]}  Bg6 {[%clk 0:00:54]} 26. Bf4 {[%clk 0:01:17]}  Ke8 {[%clk 0:00:49]} 27. Kg2 {[%clk 0:00:47]}  h5 {[%clk 0:00:48]} 28. Kg3 {[%clk 0:00:46]}  Rf7 {[%clk 0:00:41]} 29. g5 {[%clk 0:00:36]}  Rf8 {[%clk 0:00:36]} 30. h4 {[%clk 0:00:33]}  Bf5 {[%clk 0:00:35]} 31. Rc7 {[%clk 0:00:28]}  Bxc7 {[%clk 0:00:31]} 32. Rxc7 {[%clk 0:00:28]}  Rf7 {[%clk 0:00:28]} 33. Rc5 {[%clk 0:00:27]}  Rd7 {[%clk 0:00:22]} 34. Nf1 {[%clk 0:00:26]}  a4 {[%clk 0:00:19]} 35. bxa4 {[%clk 0:00:24]}  Nxa4 {[%clk 0:00:19]} 36. Rb5 {[%clk 0:00:24]}  Ra6 {[%clk 0:00:19]} 37. Ne3 {[%clk 0:00:24]}  Be4 {[%clk 0:00:16]} 38. Nd2 {[%clk 0:00:23]}  Rb6 {[%clk 0:00:15]} 39. Rxb6 {[%clk 0:00:19]}  Nxb6 {[%clk 0:00:15]} 40. f3 {[%clk 0:00:18]}  Bd3 {[%clk 0:00:14]} 41. Nb3 {[%clk 0:00:18]}  Bc4 {[%clk 0:00:13]} 42. Nc5 {[%clk 0:00:19]}  Rf7 {[%clk 0:00:12]} 43. b3 {[%clk 0:00:18]}  Bb5 {[%clk 0:00:11]} 44. g6 {[%clk 0:00:19]}  Rd7 {[%clk 0:00:09]} 45. Nxe6 {[%clk 0:00:18]}  Bc6 {[%clk 0:00:07]} 46. Nc5 {[%clk 0:00:18]}  Kd8 {[%clk 0:00:06]} 47. Nxd7 {[%clk 0:00:17]}  Kxd7 {[%clk 0:00:06]} 48. Nf5 {[%clk 0:00:18]}  Kd8 {[%clk 0:00:03]} 49. Nxg7 {[%clk 0:00:18]}  Nd7 {[%clk 0:00:03]} 50. Nxh5 {[%clk 0:00:19]}  Nf8 {[%clk 0:00:03]} 51. Nxf6 {[%clk 0:00:17]}  Nxg6 {[%clk 0:00:03]} 52. h5 {[%clk 0:00:16]}  Nh8 {[%clk 0:00:03]} 53. h6 {[%clk 0:00:16]}  Be8 {[%clk 0:00:03]} 54. Nxd5 {[%clk 0:00:13]}  Bf7 {[%clk 0:00:02]} 55. Nf6 {[%clk 0:00:11]}  Bxb3 {[%clk 0:00:02]} 56. Be5 {[%clk 0:00:11]}  Bf7 {[%clk 0:00:01]} 57. d5 {[%clk 0:00:11]}  Ng6 {[%clk 0:00:01]} 58. Bd4 {[%clk 0:00:11]}  b5 {[%clk 0:00:01]} 59. h7 {[%clk 0:00:08]} 1-0


[Site "https://www.chess.com"]

[Event "Titled Tuesday Blitz March 07 Late 2023"]
[White "Hajiyev, Kanan"]
[Black "Ramirez, Maria Eugenia"]
[WhiteFideId "13404148"]
[BlackFideId "3301680"]
[WhiteElo "2103"]
[BlackElo "1842"]
[Result "0-1"]
[Round "08"]
[TimeControl "180+2"]
[Date "2023.03.07"]
[WhiteClock "0:00:57"]
[BlackClock "0:00:06"]

1. d4 {[%clk 0:02:58]}  Nf6 {[%clk 0:02:59]} 2. Nf3 {[%clk 0:02:58]}  c5 {[%clk 0:02:59]} 3. c3 {[%clk 0:02:56]}  e6 {[%clk 0:02:59]} 4. Bf4 {[%clk 0:02:54]}  Nc6 {[%clk 0:02:57]} 5. e3 {[%clk 0:02:54]}  cxd4 {[%clk 0:02:55]} 6. exd4 {[%clk 0:02:54]}  Be7 {[%clk 0:02:54]} 7. Bd3 {[%clk 0:02:53]}  O-O {[%clk 0:02:54]} 8. O-O {[%clk 0:02:54]}  d5 {[%clk 0:02:54]} 9. Nbd2 {[%clk 0:02:54]}  Nh5 {[%clk 0:02:48]} 10. Be3 {[%clk 0:02:53]}  Nf6 {[%clk 0:02:46]} 11. a4 {[%clk 0:02:52]}  a5 {[%clk 0:02:45]} 12. Qe2 {[%clk 0:02:49]}  Bd6 {[%clk 0:02:44]} 13. Bg5 {[%clk 0:02:48]}  h6 {[%clk 0:02:43]} 14. Bh4 {[%clk 0:02:48]}  Be7 {[%clk 0:02:42]} 15. Rfe1 {[%clk 0:02:48]}  Nd7 {[%clk 0:02:42]} 16. Bg3 {[%clk 0:02:48]}  Nf6 {[%clk 0:02:40]} 17. Bc2 {[%clk 0:02:48]}  Bd6 {[%clk 0:02:39]} 18. Bh4 {[%clk 0:02:47]}  Be7 {[%clk 0:02:37]} 19. Qd3 {[%clk 0:02:47]}  g6 {[%clk 0:02:31]} 20. Bg3 {[%clk 0:02:41]}  Ne8 {[%clk 0:02:27]} 21. Qe3 {[%clk 0:02:38]}  Kg7 {[%clk 0:02:12]} 22. h4 {[%clk 0:02:35]}  f5 {[%clk 0:02:03]} 23. Bf4 {[%clk 0:02:27]}  Rh8 {[%clk 0:01:49]} 24. g3 {[%clk 0:02:27]}  Nf6 {[%clk 0:01:46]} 25. Kg2 {[%clk 0:02:28]}  Ne4 {[%clk 0:01:40]} 26. Ne5 {[%clk 0:02:28]}  Nxe5 {[%clk 0:01:37]} 27. Bxe5+ {[%clk 0:02:27]}  Bf6 {[%clk 0:01:37]} 28. Bxf6+ {[%clk 0:02:18]}  Qxf6 {[%clk 0:01:33]} 29. Nf3 {[%clk 0:02:18]}  g5 {[%clk 0:01:27]} 30. hxg5 {[%clk 0:02:13]}  hxg5 {[%clk 0:01:27]} 31. Bxe4 {[%clk 0:02:14]}  dxe4 {[%clk 0:01:22]} 32. Qxg5+ {[%clk 0:02:05]}  Qxg5 {[%clk 0:01:15]} 33. Nxg5 {[%clk 0:02:06]}  Kf6 {[%clk 0:01:13]} 34. Nh3 {[%clk 0:02:01]}  Bd7 {[%clk 0:01:13]} 35. Nf4 {[%clk 0:02:00]}  Bc6 {[%clk 0:01:13]} 36. Kf1 {[%clk 0:01:50]}  Rh2 {[%clk 0:01:07]} 37. Ke2 {[%clk 0:01:48]}  Rah8 {[%clk 0:01:05]} 38. Ke3 {[%clk 0:01:49]}  R2h7 {[%clk 0:00:48]} 39. b4 {[%clk 0:01:44]}  Rd8 {[%clk 0:00:40]} 40. b5 {[%clk 0:01:34]}  Bd5 {[%clk 0:00:40]} 41. Rh1 {[%clk 0:01:28]}  Rxh1 {[%clk 0:00:29]} 42. Rxh1 {[%clk 0:01:28]}  Bb3 {[%clk 0:00:30]} 43. Ra1 {[%clk 0:01:12]}  Rc8 {[%clk 0:00:28]} 44. Kd2 {[%clk 0:01:12]}  e5 {[%clk 0:00:26]} 45. Ne2 {[%clk 0:01:09]}  Rd8 {[%clk 0:00:23]} 46. Ra3 {[%clk 0:01:07]}  Bc4 {[%clk 0:00:23]} 47. Ke3 {[%clk 0:01:00]}  Bxe2 {[%clk 0:00:23]} 48. dxe5+ {[%clk 0:01:00]}  Kxe5 {[%clk 0:00:22]} 49. Kxe2 {[%clk 0:01:01]}  Rd3 {[%clk 0:00:21]} 50. Rb3 {[%clk 0:01:00]}  b6 {[%clk 0:00:20]} 51. Ra3 {[%clk 0:00:59]}  Kd5 {[%clk 0:00:20]} 52. Ra1 {[%clk 0:00:51]}  Rxc3 {[%clk 0:00:19]} 53. Rh1 {[%clk 0:00:52]}  Kc4 {[%clk 0:00:16]} 54. Rh6 {[%clk 0:00:52]}  Kb4 {[%clk 0:00:15]} 55. Rxb6 {[%clk 0:00:53]}  Kxa4 {[%clk 0:00:15]} 56. Rf6 {[%clk 0:00:53]}  Kxb5 {[%clk 0:00:13]} 57. Rxf5+ {[%clk 0:00:54]}  Kb4 {[%clk 0:00:13]} 58. Rf4 {[%clk 0:00:54]}  Rc4 {[%clk 0:00:12]} 59. g4 {[%clk 0:00:52]}  a4 {[%clk 0:00:12]} 60. g5 {[%clk 0:00:52]}  a3 {[%clk 0:00:12]} 61. Rf8 {[%clk 0:00:51]}  Rc5 {[%clk 0:00:10]} 62. Rb8+ {[%clk 0:00:50]}  Rb5 {[%clk 0:00:10]} 63. Ra8 {[%clk 0:00:51]}  Ra5 {[%clk 0:00:10]} 64. Rb8+ {[%clk 0:00:52]}  Rb5 {[%clk 0:00:08]} 65. Rd8 {[%clk 0:00:50]}  a2 {[%clk 0:00:07]} 66. Rd1 {[%clk 0:00:51]}  Rxg5 {[%clk 0:00:07]} 67. Ke3 {[%clk 0:00:49]}  Ra5 {[%clk 0:00:07]} 68. Ra1 {[%clk 0:00:47]}  Kb3 {[%clk 0:00:06]} 69. Kxe4 {[%clk 0:00:48]}  Kb2 {[%clk 0:00:07]} 70. Re1 {[%clk 0:00:48]}  a1=Q {[%clk 0:00:07]} 71. Rxa1 {[%clk 0:00:48]}  Kxa1 {[%clk 0:00:07]} 72. f4 {[%clk 0:00:49]}  Kb2 {[%clk 0:00:07]} 73. f5 {[%clk 0:00:49]}  Kc3 {[%clk 0:00:07]} 74. f6 {[%clk 0:00:50]}  Kc4 {[%clk 0:00:07]} 75. Kf4 {[%clk 0:00:48]}  Ra8 {[%clk 0:00:06]} 76. Ke5 {[%clk 0:00:48]}  Kc5 {[%clk 0:00:07]} 77. Ke6 {[%clk 0:00:49]}  Kc6 {[%clk 0:00:07]} 78. Ke7 {[%clk 0:00:49]}  Kc7 {[%clk 0:00:07]} 79. f7 {[%clk 0:00:50]}  Kc6 {[%clk 0:00:06]} 80. Ke6 {[%clk 0:00:50]}  Kc7 {[%clk 0:00:06]} 81. Ke7 {[%clk 0:00:50]}  Kc6 {[%clk 0:00:07]} 82. Kf6 {[%clk 0:00:50]}  Kd7 {[%clk 0:00:06]} 83. Kg7 {[%clk 0:00:49]}  Ke7 {[%clk 0:00:06]} 84. Kg6 {[%clk 0:00:50]}  Rf8 {[%clk 0:00:06]} 85. Kg7 {[%clk 0:00:50]}  Rxf7+ {[%clk 0:00:06]} 86. Kg6 {[%clk 0:00:51]}  Rf6+ {[%clk 0:00:06]} 87. Kg5 {[%clk 0:00:52]}  Kf7 {[%clk 0:00:07]} 88. Kg4 {[%clk 0:00:53]}  Kg6 {[%clk 0:00:07]} 89. Kg3 {[%clk 0:00:53]}  Kg5 {[%clk 0:00:07]} 90. Kh3 {[%clk 0:00:53]}  Rf4 {[%clk 0:00:06]} 91. Kg3 {[%clk 0:00:54]}  Rf5 {[%clk 0:00:05]} 92. Kg2 {[%clk 0:00:54]}  Kg4 {[%clk 0:00:05]} 93. Kh2 {[%clk 0:00:55]}  Rf2+ {[%clk 0:00:05]} 94. Kg1 {[%clk 0:00:55]}  Rc2 {[%clk 0:00:05]} 95. Kh1 {[%clk 0:00:56]}  Kg3 {[%clk 0:00:05]} 96. Kg1 {[%clk 0:00:57]}  Rc1# {[%clk 0:00:06]} 0-1


[Site "https://www.chess.com"]

[Event "Titled Tuesday Blitz March 07 Late 2023"]
[White "Meunier-Pion, Jean"]
[Black "Vargas Pereda, Jesus Manue"]
[WhiteFideId "20685327"]
[BlackFideId "5115710"]
[WhiteElo "2124"]
[BlackElo "1914"]
[Result "1-0"]
[Round "08"]
[TimeControl "180+2"]
[Date "2023.03.07"]
[WhiteClock "0:01:04"]
[BlackClock "0:02:13"]

1. e4 {[%clk 0:03:00]}  c5 {[%clk 0:03:00]} 2. Nf3 {[%clk 0:03:01]}  Nc6 {[%clk 0:03:00]} 3. Bb5 {[%clk 0:03:00]}  Nf6 {[%clk 0:02:56]} 4. e5 {[%clk 0:02:50]}  Nd5 {[%clk 0:02:56]} 5. O-O {[%clk 0:02:40]}  a6 {[%clk 0:02:53]} 6. Bc4 {[%clk 0:02:34]}  e6 {[%clk 0:02:47]} 7. Bxd5 {[%clk 0:02:22]}  exd5 {[%clk 0:02:47]} 8. d4 {[%clk 0:02:22]}  cxd4 {[%clk 0:02:44]} 9. Nxd4 {[%clk 0:02:22]}  Be7 {[%clk 0:02:44]} 10. Nf5 {[%clk 0:02:21]}  O-O {[%clk 0:02:43]} 11. Qg4 {[%clk 0:02:20]}  g6 {[%clk 0:02:39]} 12. Qg3 {[%clk 0:01:31]}  Kh8 {[%clk 0:02:20]} 13. Bh6 {[%clk 0:01:29]}  Rg8 {[%clk 0:02:20]} 14. Nxe7 {[%clk 0:01:20]}  Nxe7 {[%clk 0:02:16]} 15. Bg5 {[%clk 0:01:13]}  Nf5 {[%clk 0:02:15]} 16. Bxd8 {[%clk 0:01:10]}  Nxg3 {[%clk 0:02:14]} 17. Bf6+ {[%clk 0:01:10]}  Rg7 {[%clk 0:02:14]} 18. hxg3 {[%clk 0:01:07]}  Kg8 {[%clk 0:02:13]} 19. Nc3 {[%clk 0:01:07]}  d6 {[%clk 0:02:13]} 20. exd6 {[%clk 0:01:04]} 1-0


[Site "https://www.chess.com"]

[Event "Titled Tuesday Blitz March 07 Late 2023"]
[White "Moral Garcia, Serafin"]
[Black "Garcia Almaguer, Juan Manuel"]
[WhiteFideId "2201925"]
[BlackFideId "5110491"]
[WhiteElo "2254"]
[BlackElo "2117"]
[Result "1-0"]
[Round "08"]
[TimeControl "180+2"]
[Date "2023.03.07"]
[WhiteClock "0:01:18"]
[BlackClock "0:01:09"]

1. e4 {[%clk 0:02:09]}  e5 {[%clk 0:02:53]} 2. Nf3 {[%clk 0:02:09]}  Nc6 {[%clk 0:02:53]} 3. Bb5 {[%clk 0:02:09]}  a6 {[%clk 0:02:53]} 4. Bxc6 {[%clk 0:02:10]}  dxc6 {[%clk 0:02:54]} 5. O-O {[%clk 0:02:10]}  Qf6 {[%clk 0:02:54]} 6. d4 {[%clk 0:02:10]}  exd4 {[%clk 0:02:55]} 7. Bg5 {[%clk 0:02:09]}  Qg6 {[%clk 0:02:53]} 8. Qxd4 {[%clk 0:02:09]}  Be7 {[%clk 0:02:52]} 9. Bxe7 {[%clk 0:02:08]}  Nxe7 {[%clk 0:02:52]} 10. Ne5 {[%clk 0:01:58]}  Qd6 {[%clk 0:02:49]} 11. Rd1 {[%clk 0:01:58]}  Qxd4 {[%clk 0:02:48]} 12. Rxd4 {[%clk 0:01:58]}  O-O {[%clk 0:02:48]} 13. Nc3 {[%clk 0:01:57]}  f6 {[%clk 0:02:46]} 14. Nf3 {[%clk 0:01:57]}  Bg4 {[%clk 0:02:44]} 15. Ne1 {[%clk 0:01:54]}  c5 {[%clk 0:02:42]} 16. Rd2 {[%clk 0:01:53]}  Rad8 {[%clk 0:02:41]} 17. Rxd8 {[%clk 0:01:53]}  Rxd8 {[%clk 0:02:42]} 18. f3 {[%clk 0:01:46]}  Be6 {[%clk 0:02:42]} 19. a3 {[%clk 0:01:46]}  Rd2 {[%clk 0:02:39]} 20. Rd1 {[%clk 0:01:46]}  Rxd1 {[%clk 0:02:38]} 21. Nxd1 {[%clk 0:01:46]}  Kf7 {[%clk 0:02:35]} 22. Kf2 {[%clk 0:01:45]}  b6 {[%clk 0:02:33]} 23. Nd3 {[%clk 0:01:44]}  g5 {[%clk 0:02:33]} 24. g3 {[%clk 0:01:39]}  Nc6 {[%clk 0:02:27]} 25. c3 {[%clk 0:01:36]}  Bc4 {[%clk 0:02:20]} 26. Ne1 {[%clk 0:01:36]}  Na5 {[%clk 0:02:16]} 27. Ne3 {[%clk 0:01:35]}  Be6 {[%clk 0:02:14]} 28. Nd3 {[%clk 0:01:30]}  Nc4 {[%clk 0:02:13]} 29. Nxc4 {[%clk 0:01:30]}  Bxc4 {[%clk 0:02:14]} 30. Ke3 {[%clk 0:01:30]}  Ke6 {[%clk 0:02:13]} 31. f4 {[%clk 0:01:29]}  Bxd3 {[%clk 0:02:10]} 32. Kxd3 {[%clk 0:01:28]}  gxf4 {[%clk 0:02:10]} 33. gxf4 {[%clk 0:01:29]}  f5 {[%clk 0:02:10]} 34. Ke3 {[%clk 0:01:28]}  c6 {[%clk 0:01:58]} 35. h3 {[%clk 0:01:26]}  Kf6 {[%clk 0:01:57]} 36. Kf3 {[%clk 0:01:26]}  Ke6 {[%clk 0:01:56]} 37. c4 {[%clk 0:01:24]}  b5 {[%clk 0:01:48]} 38. b3 {[%clk 0:01:21]}  a5 {[%clk 0:01:48]} 39. a4 {[%clk 0:01:21]}  b4 {[%clk 0:01:46]} 40. exf5+ {[%clk 0:01:21]}  Kxf5 {[%clk 0:01:46]} 41. Ke3 {[%clk 0:01:20]}  h5 {[%clk 0:01:19]} 42. Kf3 {[%clk 0:01:18]}  h4 {[%clk 0:01:19]} 43. Ke3 {[%clk 0:01:19]}  Ke6 {[%clk 0:01:16]} 44. Ke4 {[%clk 0:01:19]}  Kf6 {[%clk 0:01:14]} 45. f5 {[%clk 0:01:19]}  Ke7 {[%clk 0:01:11]} 46. Kf4 {[%clk 0:01:18]}  Kf7 {[%clk 0:01:09]} 47. Kg5 {[%clk 0:01:18]} 1-0


[Site "https://www.chess.com"]